bitfinex-derivatives/quotes_ETHF0:USTF0_20250217
["timestamp","ask_amount","ask_price","bid_price","bid_amount"]
[1739784535888,1.31691,2718.3,2718.2,0.73574]
[1739784536283,0.5812,2718.3,2718.2,0.73574]
[1739784537393,0.73576,2718.2,2718.1,0.73577]
[1739784537589,0.73576,2718.2,2718.0,3.2078]
[1739784537891,0.5812,2718.3,2718.2,0.73574]
[1739784542790,0.00552425,2718.5,2718.4,0.73569]
[1739784543093,0.7357,2718.4,2718.3,0.7357]
[1739784543885,0.57072425,2718.5,2718.0,3.2078]
[1739784544084,0.57072425,2718.5,2718.4,0.73569]
[1739784544587,0.00552425,2718.5,2718.4,0.73569]
[1739784544784,0.00552425,2718.5,2718.4,1.84729]
[1739784553001,0.00552425,2718.5,2718.4,5.05509]
[1739784555899,1.1062,2719.1,2718.4,10.3194]
[1739784556200,2.527,2719.8,2719.7,0.73534]
[1739784556601,3.26231,2719.8,2719.6,0.73534]
[1739784557106,0.73535,2719.7,2719.4,0.00552425]
[1739784557295,2.527,2719.8,2719.4,0.00552425]
[1739784557599,0.73539,2719.5,2719.4,0.00552425]
[1739784558001,0.5447,2719.6,2719.4,0.00552425]
[1739784558401,0.73539,2719.5,2719.4,0.00552425]
[1739784563606,0.5447,2719.6,2718.8,3.2078]
[1739784563808,0.73554,2719.0,2718.8,3.2078]
[1739784564007,0.5381,2718.9,2718.8,3.2078]
[1739784564204,0.5381,2718.9,2718.8,3.94338]
[1739784565200,0.5381,2718.9,2718.8,0.73558]
[1739784565701,1.27367,2718.9,2718.7,0.7356]
[1739784566003,1.27367,2718.9,2718.6,0.59162425]
[1739784566202,1.27367,2718.9,2718.7,0.73559]
[1739784566506,0.5381,2718.9,2718.6,0.59162425]
[1739784566708,0.73561,2718.7,2718.6,0.00552425]
[1739784567211,3.26161,2718.7,2718.6,0.00552425]
[1739784573515,0.73561,2718.7,2718.6,0.00552425]
[1739784573707,3.26161,2718.7,2718.6,0.00552425]
[1739784574814,2.526,2718.7,2718.0,1.1333]
[1739784575013,3.2078,2718.3,2718.0,1.1333]
[1739784575213,0.73577,2718.1,2718.0,1.1333]
[1739784576012,1.87166,2718.2,2718.0,1.1333]
[1739784576212,1.1359,2718.2,2718.0,1.86907]
[1739784576614,1.87166,2718.2,2718.0,1.86907]
[1739784577611,1.1359,2718.2,2718.0,1.86907]
[1739784577918,1.87165,2718.2,2718.0,1.86907]
[1739784578721,1.1359,2718.2,2718.0,1.1333]
[1739784578919,1.1359,2718.2,2718.0,1.86908]
[1739784579121,1.1359,2718.2,2718.1,0.73577]
[1739784579320,1.1359,2718.2,2718.0,1.1333]
[1739784579515,1.87166,2718.2,2718.0,1.86908]
[1739784580018,1.1359,2718.2,2718.1,0.73577]
[1739784580218,1.87164,2718.2,2718.0,1.1333]
[1739784580418,1.87164,2718.2,2718.0,1.86908]
[1739784580613,0.73574,2718.2,2718.0,1.1333]
[1739784580814,5.73932425,2718.3,2718.1,0.73577]
[1739784581218,0.73574,2718.2,2718.1,0.73577]
[1739784581420,5.73932425,2718.3,2718.1,0.73577]
[1739784581625,2.53152425,2718.3,2718.1,0.73577]
[1739784581826,0.73574,2718.2,2718.1,0.73577]
[1739784582125,5.73932425,2718.3,2718.1,0.73576]
[1739784582327,0.73574,2718.2,2718.0,1.86908]
[1739784582527,0.73574,2718.2,2718.1,0.73577]
[1739784583326,0.73574,2718.2,2718.0,1.1333]
[1739784583528,5.73932425,2718.3,2718.0,1.1333]
[1739784583733,5.73932425,2718.3,2718.1,0.73576]
[1739784584238,5.73932425,2718.3,2717.8,0.00552425]
[1739784584239,0.73582,2717.9,2717.8,0.00552425]
[1739784584527,0.73605,2717.1,2716.6,0.73616]
[1739784584736,2.526,2717.2,2716.5,3.2078]
[1739784584928,0.73614,2716.8,2716.5,3.2078]
[1739784585330,0.73616,2716.7,2716.5,3.2078]
[1739784585625,0.7362,2716.5,2716.4,0.00552425]
[1739784587634,2.526,2716.5,2716.4,0.00552425]
[1739784589235,3.2622,2716.5,2716.4,0.00552425]
[1739784589630,2.526,2716.5,2716.4,0.00552425]
[1739784592428,2.526,2716.6,2716.4,0.00552425]
[1739784592928,2.526,2716.6,2716.5,0.7362]
[1739784593224,3.2078,2716.7,2716.6,0.73617]
[1739784593937,2.526,2716.8,2716.5,1.6606]
[1739784594129,2.526,2716.8,2716.6,0.73616]
[1739784594329,2.526,2716.8,2716.7,0.73615]
[1739784594530,0.00552425,2716.9,2716.7,0.73615]
[1739784594932,0.00552425,2716.9,2716.8,0.73612]
[1739784595132,0.00552425,2716.9,2716.5,1.6606]
[1739784595534,0.00552425,2716.9,2716.6,0.73615]
[1739784595734,0.00552425,2716.9,2716.7,0.73615]
[1739784596429,0.00552425,2716.9,2716.5,1.6606]
[1739784596629,0.74163425,2716.9,2716.6,0.73615]
[1739784596835,0.00552425,2716.9,2716.6,0.73615]
[1739784597139,0.73617,2716.6,2716.5,1.6606]
[1739784598642,0.7362,2716.5,2716.4,0.00552425]
[1739784599444,2.526,2716.7,2716.4,0.00552425]
[1739784599643,0.73618,2716.6,2716.4,0.00552425]
[1739784600133,2.526,2716.7,2716.4,0.00552425]
[1739784600536,0.73617,2716.6,2716.4,0.00552425]
[1739784600738,0.7362,2716.5,2716.4,0.00552425]
[1739784601751,2.526,2716.7,2716.4,0.74174425]
[1739784602041,2.526,2716.7,2716.6,0.73617]
[1739784602832,0.00552425,2716.9,2716.4,0.00552425]
[1739784603033,0.00552425,2716.9,2716.8,0.73612]
[1739784604444,0.00552425,2716.9,2716.6,1.093]
[1739784604644,0.00552425,2716.9,2716.8,0.73612]
[1739784604940,0.74163425,2716.9,2716.7,0.73613]
[1739784605141,0.73613,2716.8,2716.6,1.093]
[1739784605334,3.94362345,2716.9,2716.6,1.82917]
[1739784606041,3.94363345,2716.9,2716.6,1.82916]
[1739784606344,0.73613,2716.8,2716.6,1.093]
[1739784606638,3.20752345,2716.9,2716.6,1.093]
[1739784606843,0.73615,2716.7,2716.6,0.5465]
[1739784607043,0.73617,2716.6,2716.5,2.915]
[1739784607248,3.9381692,2716.6,2716.5,2.915]
[1739784607439,3.2019992,2716.6,2716.5,2.915]
[1739784607744,3.81007,2716.7,2716.5,2.915]
[1739784608445,3.0739,2716.7,2716.5,2.915]
[1739784608638,2.526,2716.7,2716.6,0.73618]
[1739784608844,2.526,2716.7,2716.6,1.30218]
[1739784609545,3.2078,2716.8,2716.7,0.73615]
[1739784609842,3.2078,2716.8,2716.7,0.5801]
[1739784610049,3.94392,2716.8,2716.7,0.5801]
[1739784610240,0.73618,2716.6,2716.5,2.915]
[1739784611347,3.1078,2716.7,2716.5,2.915]
[1739784611548,3.84396,2716.7,2716.5,3.6512]
[1739784611844,2.526,2716.7,2716.6,0.73617]
[1739784612743,3.2078,2716.8,2716.7,0.73615]
[1739784612944,3.2078,2716.8,2716.6,1.32247]
[1739784613347,0.73615,2716.7,2716.6,0.5863]
[1739784613541,3.94394,2716.8,2716.6,0.5863]
[1739784613747,0.73615,2716.7,2716.6,0.5863]
[1739784615048,3.2078,2716.8,2716.6,1.32246]
[1739784615049,3.94393,2716.8,2716.6,1.32246]
[1739784615850,3.2078,2716.8,2716.6,0.5863]
[1739784616048,0.73615,2716.7,2716.6,0.5863]
[1739784616552,3.94394,2716.8,2716.6,1.32248]
[1739784616747,3.94394,2716.8,2716.6,0.5863]
[1739784617251,3.94394,2716.8,2716.6,1.32247]
[1739784617551,0.73615,2716.7,2716.6,1.32248]
[1739784618551,3.94394,2716.8,2716.6,1.32248]
[1739784618852,3.94362345,2716.9,2716.7,0.73615]
[1739784619046,3.94362345,2716.9,2716.7,1.30075]
[1739784619254,0.74162425,2716.9,2716.7,1.30075]
[1739784620150,0.00552425,2716.9,2716.7,1.30074]
[1739784620350,0.74163425,2716.9,2716.7,1.30074]
[1739784620853,0.74163425,2716.9,2716.7,0.5646]
[1739784621053,0.74163425,2716.9,2716.7,1.30073]
[1739784621552,0.00552425,2716.9,2716.8,0.73612]
[1739784621755,0.74161425,2716.9,2716.8,0.73612]
[1739784622054,0.73612,2716.8,2716.7,1.0978]
[1739784622357,0.00552425,2716.9,2716.7,1.0978]
[1739784622656,0.74163425,2716.9,2716.7,1.83395]
[1739784622850,0.73612,2716.8,2716.7,1.0978]
[1739784623256,0.00552425,2716.9,2716.7,1.0978]
[1739784623451,0.74164425,2716.9,2716.7,1.83394]
[1739784623754,0.74163425,2716.9,2716.7,1.83394]
[1739784624452,0.00552425,2716.9,2716.8,0.73612]
[1739784625268,0.74161425,2716.9,2716.8,0.73612]
[1739784626158,0.74161425,2716.9,2716.7,1.0978]
[1739784626455,0.74161425,2716.9,2716.8,0.73612]
[1739784626958,0.00552425,2716.9,2716.8,0.73612]
[1739784627354,0.74161425,2716.9,2716.8,0.73612]
[1739784627549,0.00552425,2716.9,2716.8,0.73612]
[1739784627754,0.74161425,2716.9,2716.8,0.73612]
[1739784628460,0.00552425,2716.9,2716.8,0.73612]
[1739784628650,0.74161425,2716.9,2716.8,0.73612]
[1739784628952,3.2078,2717.7,2716.8,2.915]
[1739784629149,2.525,2717.6,2717.5,0.73592]
[1739784629351,2.525,2717.6,2717.2,1.1079]
[1739784629559,8.9347992,2717.6,2717.2,1.6509]
[1739784629758,3.2078,2717.5,2717.1,2.915]
[1739784629959,0.73601,2717.2,2717.1,2.915]
[1739784630158,6.46881,2717.2,2717.1,2.915]
[1739784630657,7.59931,2717.2,2717.1,2.915]
[1739784633753,0.73608,2717.0,2716.8,0.7361]
[1739784633954,6.8633,2717.2,2716.8,0.7361]
[1739784634156,6.8633,2717.2,2716.5,4.8831]
[1739784634375,0.73605,2717.1,2716.8,0.7361]
[1739784634558,7.59933,2717.2,2716.9,0.73608]
[1739784634758,6.8633,2717.2,2716.5,4.8831]
[1739784634958,5.7328,2717.2,2717.1,0.73604]
[1739784635260,3.25997,2717.4,2717.1,0.73604]
[1739784635459,3.25997,2717.4,2716.8,3.2078]
[1739784635460,1.1546,2717.5,2717.2,0.5372]
[1739784635655,2.524,2717.4,2717.3,0.73599]
[1739784635859,2.524,2717.4,2717.3,1.84679]
[1739784636065,5.73732425,2717.6,2717.5,0.73593]
[1739784636365,0.00552425,2717.6,2717.5,0.73593]
[1739784638361,0.00552425,2717.6,2717.4,6.85875]
[1739784638562,0.00552425,2717.6,2717.4,2.915]
[1739784638758,1.8401,2717.2,2716.1,17.22474273]
[1739784638959,0.7362,2716.5,2716.1,17.22474273]
[1739784639160,0.7362,2716.5,2716.1,14.01694273]
[1739784639358,1.3153,2716.5,2716.1,14.01694273]
[1739784640062,0.7363,2716.2,2715.8,3.2078]
[1739784640273,5.7259992,2716.2,2715.8,3.2078]
[1739784640466,6.4622792,2716.2,2715.8,3.2078]
[1739784641055,5.7259992,2716.2,2715.8,3.2078]
[1739784641459,5.7259992,2716.2,2715.8,3.94418]
[1739784641764,6.4622992,2716.2,2715.8,3.2078]
[1739784642165,5.7259992,2716.2,2715.8,3.2078]
[1739784642559,6.4622992,2716.2,2715.8,3.2078]
[1739784643269,5.7259992,2716.2,2715.8,3.2078]
[1739784643463,5.7259992,2716.2,2715.8,3.94419]
[1739784643867,5.7259992,2716.2,2715.9,0.73635]
[1739784644266,5.7259992,2716.2,2715.8,3.2078]
[1739784644466,5.7259992,2716.2,2715.9,0.73636]
[1739784644661,3.2019992,2716.2,2715.8,3.2078]
[1739784644861,5.7259992,2716.2,2715.9,0.73635]
[1739784645069,2.524,2716.2,2715.8,3.2078]
[1739784645268,2.524,2716.2,2715.9,0.73635]
[1739784646266,2.524,2716.2,2715.9,0.73636]
[1739784646467,3.26029,2716.2,2715.8,3.94418]
[1739784646668,3.26029,2716.2,2715.8,3.2078]
[1739784646973,2.524,2716.2,2715.9,0.73634]
[1739784647160,0.5791,2716.5,2715.8,3.2078]
[1739784647561,1.31532,2716.5,2716.1,0.7363]
[1739784647769,1.31532,2716.5,2716.0,0.73632]
[1739784647770,0.73624,2716.4,2716.0,0.73632]
[1739784647957,0.73624,2716.4,2715.8,3.2078]
[1739784648166,0.73629,2716.2,2715.9,0.73635]
[1739784648564,0.73629,2716.2,2715.8,3.94417]
[1739784648765,3.2019992,2716.2,2715.8,3.2078]
[1739784649071,2.524,2716.1,2715.8,3.2078]
[1739784649272,0.73636,2715.9,2715.8,3.2078]
[1739784650167,3.9383592,2715.9,2715.8,3.2078]
[1739784650372,0.73639,2715.8,2715.7,0.00552425]
[1739784650567,0.73653,2715.3,2715.1,3.2078]
[1739784650969,0.73651,2715.4,2715.1,3.94438]
[1739784651265,1.29201,2715.4,2715.1,3.94438]
[1739784651462,1.292,2715.4,2715.1,3.94438]
[1739784651664,0.5555,2715.4,2715.1,3.2078]
[1739784651864,0.73642,2715.7,2715.3,0.73653]
[1739784652174,2.524,2715.7,2715.4,0.73649]
[1739784652372,2.524,2715.7,2715.5,0.73647]
[1739784652572,0.5728,2715.8,2715.1,3.2078]
[1739784652872,3.0968,2715.8,2715.4,3.2078]
[1739784653074,3.0968,2715.8,2715.6,0.73644]
[1739784653774,3.0968,2715.8,2715.5,1.1714]
[1739784654077,2.524,2716.4,2715.7,3.2078]
[1739784654568,0.74182425,2716.2,2715.8,0.73638]
[1739784654763,0.00552425,2716.2,2715.8,0.73638]
[1739784654970,0.00552425,2716.2,2715.7,3.2078]
[1739784654971,0.73635,2716.0,2715.7,0.73641]
[1739784655165,3.7628992,2716.1,2715.6,0.5545]
[1739784655377,0.73645,2715.6,2715.5,1.1714]
[1739784656972,0.73648,2715.5,2715.1,6.3356]
[1739784657275,0.7365,2715.4,2715.1,6.53036]
[1739784657778,8.9337992,2716.0,2715.2,0.73654]
[1739784657972,9.4770992,2716.0,2715.1,5.7938]
[1739784658275,0.73646,2715.6,2715.2,0.73653]
[1739784658470,9.4770992,2716.0,2715.1,5.7938]
[1739784658671,0.73636,2715.9,2715.1,5.7938]
[1739784658879,0.73638,2715.9,2715.5,0.73645]
[1739784659073,9.4770992,2716.0,2715.5,0.73645]
[1739784659266,9.4770992,2716.0,2715.1,8.9957992]
[1739784659471,0.73646,2715.6,2715.3,0.73652]
[1739784659670,0.73646,2715.6,2715.3,0.73653]
[1739784660178,0.73646,2715.6,2715.3,0.73651]
[1739784660378,9.4770992,2716.0,2715.1,3.7637]
[1739784660577,0.73648,2715.5,2715.1,3.7637]
[1739784660773,0.73651,2715.4,2715.1,3.7637]
[1739784660979,3.2019992,2715.7,2715.1,3.7637]
[1739784661180,6.4097992,2715.4,2715.0,0.5687]
[1739784661382,0.73657,2715.2,2715.0,0.5687]
[1739784661574,3.2078,2715.4,2715.0,0.5687]
[1739784661775,2.524,2715.4,2715.2,0.73654]
[1739784661985,2.524,2715.4,2715.2,0.73655]
[1739784662781,2.524,2715.4,2715.3,0.73653]
[1739784662981,2.524,2715.4,2715.1,0.5501]
[1739784663283,2.524,2715.4,2715.3,0.73653]
[1739784663881,2.524,2715.4,2715.1,0.5501]
[1739784664075,0.73653,2715.3,2715.1,1.28667]
[1739784664274,2.524,2715.4,2715.1,0.5501]
[1739784664882,3.26051,2715.4,2715.1,0.5501]
[1739784665077,2.524,2715.4,2715.3,0.73653]
[1739784665277,3.26052,2715.4,2715.2,0.73655]
[1739784665478,3.26052,2715.4,2715.2,0.73653]
[1739784665678,0.73654,2715.3,2715.1,1.28667]
[1739784665879,3.26053,2715.4,2715.1,0.5501]
[1739784666182,3.26052,2715.4,2715.2,0.73655]
[1739784666387,3.26051,2715.4,2715.2,0.73655]
[1739784666578,2.524,2715.4,2715.1,0.5501]
[1739784666888,2.524,2715.4,2715.3,0.73653]
[1739784667185,0.73653,2715.3,2715.1,0.5501]
[1739784667381,0.73653,2715.3,2715.2,0.73655]
[1739784667683,3.26052,2715.4,2715.2,0.73655]
[1739784667985,2.524,2715.4,2715.2,0.73655]
[1739784668181,3.26051,2715.4,2715.2,0.73655]
[1739784668381,2.524,2715.4,2715.1,0.5501]
[1739784668583,2.524,2715.4,2715.2,0.73655]
[1739784668884,0.73658,2715.1,2715.0,0.5687]
[1739784669982,0.73661,2715.0,2714.9,3.2078]
[1739784670182,1.26791,2715.0,2714.9,3.2078]
[1739784670383,3.0553,2715.0,2714.6,1.146]
[1739784670680,0.73669,2714.7,2714.6,0.5711]
[1739784672374,0.73672,2714.6,2714.5,3.2078]
[1739784672781,3.2019992,2714.8,2714.5,3.2078]
[1739784672782,3.20752345,2714.8,2714.5,3.2078]
[1739784673387,0.73672,2714.6,2714.5,3.2078]
[1739784673780,3.20752345,2714.8,2714.5,3.2078]
[1739784674083,3.20752345,2714.8,2714.2,3.2078]
[1739784674285,3.9387692,2714.4,2714.2,3.2078]
[1739784674480,2.524,2714.3,2714.1,0.73684]
[1739784674881,0.73684,2714.2,2714.0,0.5815]
[1739784675485,2.524,2714.3,2714.1,0.73685]
[1739784675687,2.524,2714.3,2714.0,0.5815]
[1739784675886,0.73684,2714.2,2714.0,0.5815]
[1739784676086,0.73685,2714.1,2714.0,0.5815]
[1739784676287,3.9388492,2714.1,2713.8,0.5539]
[1739784676483,3.2019992,2714.1,2713.8,0.5539]
[1739784676686,0.7369,2714.0,2713.8,0.5539]
[1739784676898,3.2078,2714.2,2713.8,0.5539]
[1739784677089,2.524,2714.4,2714.3,0.7368]
[1739784677491,4.3255992,2714.7,2714.0,3.2019992]
[1739784677692,2.524,2714.6,2714.5,0.73674]
[1739784678283,3.21332425,2714.8,2714.2,3.2019992]
[1739784678489,0.00552425,2714.8,2714.7,0.73669]
[1739784682890,3.2078,2716.0,2715.6,0.73645]
[1739784683098,3.0809,2715.9,2715.1,5.04921]
[1739784683284,0.73642,2715.7,2715.2,0.5653]
[1739784683492,6.4097992,2715.7,2715.2,0.5653]
[1739784683695,6.4097992,2715.7,2715.1,0.73658]
[1739784683994,6.4097992,2715.7,2714.8,0.5653]
[1739784684195,0.73654,2715.3,2715.1,0.00552425]
[1739784684393,0.5569,2715.2,2715.1,0.00552425]
[1739784684792,0.5569,2715.2,2715.1,0.74210425]
[1739784685097,2.524,2715.5,2715.1,0.00552425]
[1739784685397,2.524,2715.5,2715.3,0.73652]
[1739784685698,2.524,2715.5,2715.2,0.73655]
[1739784685885,3.26049,2715.5,2715.2,0.73655]
[1739784686200,2.524,2715.5,2715.3,0.73652]
[1739784687197,2.524,2715.5,2715.4,0.7365]
[1739784688093,2.524,2715.5,2715.1,0.58652425]
[1739784688299,0.73651,2715.4,2715.1,1.32309425]
[1739784688594,3.2019992,2715.4,2715.1,0.58652425]
[1739784688800,0.73654,2715.3,2715.1,0.58652425]
[1739784689190,6.4097992,2715.4,2715.1,0.00552425]
[1739784689391,1.31755,2715.2,2715.1,0.00552425]
[1739784689792,42.11755,2715.2,2715.1,0.00552425]
[1739784690189,1.31755,2715.2,2715.1,0.00552425]
[1739784690495,0.581,2715.2,2715.1,0.00552425]
[1739784690693,2.524,2715.3,2715.2,0.73655]
[1739784690996,2.524,2715.3,2715.1,0.00552425]
[1739784691297,3.26054,2715.3,2715.1,0.00552425]
[1739784692299,0.73655,2715.2,2715.1,0.00552425]
[1739784693602,6.73655,2715.2,2715.1,0.00552425]
[1739784693789,6.0,2715.2,2714.6,3.2078]
[1739784693993,0.73669,2714.7,2714.6,3.2078]
[1739784694293,5.7259992,2714.7,2714.0,1.1335]
[1739784694492,0.73681,2714.3,2714.0,1.87038]
[1739784694800,3.26081,2714.3,2714.0,1.87038]
[1739784695199,2.524,2714.3,2714.0,1.87038]
[1739784695500,2.524,2714.3,2714.2,0.73683]
[1739784696102,3.2078,2714.4,2714.0,1.1335]
[1739784696103,3.2078,2714.4,2714.3,0.7368]
[1739784696396,3.2078,2714.4,2714.0,1.1335]
[1739784696397,5.7308,2714.4,2714.0,1.1335]
[1739784696598,5.7308,2714.4,2714.1,0.73684]
[1739784696793,5.7308,2714.4,2714.3,0.7368]
[1739784698100,5.7308,2714.4,2714.0,1.1335]
[1739784698289,2.523,2714.4,2714.3,0.7368]
[1739784700902,3.2078,2714.8,2714.1,3.2078]
[1739784701197,2.524,2714.7,2714.6,0.73669]
[1739784701996,0.73669,2714.7,2714.2,1.84207]
[1739784702194,3.26069,2714.7,2714.5,0.73672]
[1739784702399,0.73674,2714.6,2714.1,3.2078]
[1739784702598,0.73674,2714.6,2714.4,0.73676]
[1739784702798,3.26071,2714.7,2714.5,0.73673]
[1739784702999,2.524,2714.7,2714.5,0.73673]
[1739784703204,0.73672,2714.6,2714.5,0.73673]
[1739784703407,2.524,2714.7,2714.5,0.73673]
[1739784703704,2.524,2714.7,2714.1,3.2078]
[1739784703904,2.524,2714.7,2714.5,0.73673]
[1739784704108,0.73673,2714.6,2714.4,0.73676]
[1739784704502,0.73673,2714.6,2714.5,0.73674]
[1739784705206,0.73673,2714.6,2714.4,0.73675]
[1739784705403,0.73673,2714.6,2714.5,0.73674]
[1739784705805,2.524,2714.7,2714.1,3.2078]
[1739784706005,2.524,2714.7,2714.6,0.73672]
[1739784707205,2.524,2714.7,2714.1,3.2078]
[1739784707407,3.26071,2714.7,2714.1,5.04991]
[1739784707610,0.73672,2714.6,2714.5,0.73673]
[1739784707812,2.524,2714.7,2714.6,0.73672]
[1739784708005,3.2078,2714.8,2714.7,0.73669]
[1739784708206,5.7318,2714.8,2714.7,0.73669]
[1739784709513,3.2078,2714.8,2714.7,0.73669]
[1739784709813,2.523,2714.9,2714.8,0.73666]
[1739784711008,6.46738,2715.1,2715.0,0.73661]
[1739784711607,3.2078,2715.1,2715.0,0.73661]
[1739784711807,5.7308,2715.1,2715.0,0.73661]
[1739784712309,2.523,2715.1,2715.0,0.73661]
[1739784713214,2.523,2715.1,2714.6,2.40847]
[1739784713415,2.523,2715.1,2714.6,0.5667]
[1739784713616,0.5684,2715.0,2714.7,0.73668]
[1739784713817,0.73664,2714.9,2714.6,0.5667]
[1739784714018,0.73664,2714.9,2714.8,0.73666]
[1739784714213,0.73664,2714.9,2714.6,0.5667]
[1739784714415,0.73664,2714.9,2714.7,0.73668]
[1739784715117,0.73664,2714.9,2714.7,0.73669]
[1739784715519,0.5684,2715.0,2714.6,0.5667]
[1739784715715,2.523,2715.1,2714.6,0.5667]
[1739784715922,2.523,2715.1,2715.0,0.73661]
[1739784716514,2.523,2715.1,2714.6,0.5667]
[1739784716714,2.523,2715.1,2714.9,0.73662]
[1739784716715,3.25961,2715.1,2714.9,0.73662]
[1739784717113,2.523,2715.1,2714.8,0.73665]
[1739784717319,0.73665,2714.9,2714.7,0.73668]
[1739784718218,0.5781,2715.0,2714.6,0.5667]
[1739784718417,2.523,2715.1,2714.6,0.5667]
[1739784718618,3.2078,2715.2,2714.7,1.84173]
[1739784718820,3.94438,2715.2,2715.0,0.73659]
[1739784719123,2.523,2715.4,2715.1,1.1168]
[1739784719312,2.523,2715.5,2715.4,0.7365]
[1739784719514,3.20752345,2715.7,2715.2,0.5375]
[1739784719828,0.00552425,2715.7,2715.2,0.5375]
[1739784720031,0.00552425,2715.7,2715.6,0.73645]
[1739784720324,0.00552425,2715.7,2715.4,0.0021368]
[1739784720515,0.74194425,2715.7,2715.4,0.7386168]
[1739784720717,0.74194425,2715.7,2715.4,0.0021368]
[1739784721116,0.00552425,2715.7,2715.4,0.7386268]
[1739784721316,0.00552425,2715.7,2715.4,0.0021368]
[1739784721523,0.74195425,2715.7,2715.4,0.7386268]
[1739784721718,0.74195425,2715.7,2715.4,0.0021368]
[1739784721919,0.00552425,2715.7,2715.5,0.73647]
[1739784722126,0.74194425,2715.7,2715.5,0.73647]
[1739784722623,0.74194425,2715.7,2715.6,0.5438]
[1739784722832,0.00552425,2715.7,2715.6,0.5438]
[1739784723319,0.00552425,2715.7,2715.4,0.0021368]
[1739784723320,3.20752345,2715.7,2715.4,0.0021368]
[1739784723633,3.94427,2715.5,2715.4,0.0021368]
[1739784724126,4.53347,2715.5,2715.4,0.0021368]
[1739784724326,45.33347,2715.5,2715.4,0.0021368]
[1739784725127,45.33347,2715.5,2715.4,0.7386368]
[1739784725128,0.5892,2715.5,2715.4,0.7386368]
[1739784725822,0.5892,2715.5,2715.4,0.0021368]
[1739784726019,3.20752345,2715.7,2715.4,0.0021368]
[1739784726226,2.522,2715.6,2715.5,0.73646]
[1739784726528,0.00552425,2715.7,2715.5,1.29786]
[1739784726731,2.52752425,2715.7,2715.5,1.29786]
[1739784726931,3.26394425,2715.7,2715.5,1.29787]
[1739784727134,3.26394425,2715.7,2715.5,0.5614]
[1739784727430,0.00552425,2715.7,2715.5,1.29786]
[1739784727630,3.26394425,2715.7,2715.5,1.29786]
[1739784728127,2.52752425,2715.7,2715.5,0.5614]
[1739784728529,3.26395425,2715.7,2715.5,1.29786]
[1739784728721,2.52752425,2715.7,2715.6,0.73645]
[1739784728923,0.00552425,2715.7,2715.6,0.73645]
[1739784729122,0.00552425,2715.7,2715.6,1.28165]
[1739784732025,0.7363,2716.2,2716.0,0.73633]
[1739784732229,4.2941,2716.4,2715.8,3.2078]
[1739784732434,0.73636,2715.9,2715.8,3.2078]
[1739784733330,2.522,2716.0,2715.8,3.2078]
[1739784733726,2.522,2716.0,2715.9,0.73636]
[1739784733927,3.25834,2716.0,2715.9,0.73636]
[1739784734630,2.522,2716.0,2715.9,0.73636]
[1739784735439,0.00552425,2716.1,2716.0,0.73634]
[1739784735737,0.00552425,2716.1,2716.0,1.27414]
[1739784744541,0.00552425,2716.1,2716.0,2.15880938]
[1739784746339,0.5337,2716.8,2716.7,0.73615]
[1739784746542,3.0547,2716.8,2716.7,0.73615]
[1739784746936,3.0547,2716.8,2716.5,1.6513]
[1739784747138,3.79083,2716.8,2716.7,0.73615]
[1739784747338,3.0547,2716.8,2716.7,0.73615]
[1739784747740,3.79082,2716.8,2716.7,0.73615]
[1739784749040,3.0547,2716.8,2716.7,0.73615]
[1739784749438,3.79082,2716.8,2716.7,0.73615]
[1739784749745,3.0547,2716.8,2716.7,0.73615]
[1739784750144,0.73616,2716.7,2716.5,1.6513]
[1739784750344,3.0547,2716.8,2716.6,0.73618]
[1739784750646,3.79084,2716.8,2716.6,0.73618]
[1739784751150,3.79084,2716.8,2716.7,0.73615]
[1739784751344,3.79084,2716.8,2716.5,1.6513]
[1739784751540,3.79084,2716.8,2716.3,0.73625]
[1739784751541,3.0547,2716.8,2716.3,0.73625]
[1739784751847,0.73622,2716.5,2716.3,0.73625]
[1739784752043,0.5393,2716.4,2716.3,0.73625]
[1739784752345,0.73626,2716.3,2716.2,1.116]
[1739784752851,3.79554,2716.4,2716.2,1.116]
[1739784753148,0.73626,2716.3,2716.2,0.5533]
[1739784753346,9.4690992,2716.4,2715.9,0.5522]
[1739784753647,0.73632,2716.1,2715.9,0.5522]
[1739784753850,0.5536,2716.2,2715.9,0.5522]
[1739784754044,0.73631,2716.1,2715.9,0.5522]
[1739784754447,0.5536,2716.2,2715.9,0.5522]
[1739784754646,0.73634,2716.0,2715.9,0.5522]
[1739784754852,0.73634,2716.0,2715.8,3.2078]
[1739784755040,1.29516,2715.9,2715.8,3.2078]
[1739784755241,0.5588,2715.9,2715.8,3.2078]
[1739784755745,0.73641,2715.8,2715.5,0.5522]
[1739784755942,1.29518,2715.9,2715.5,1.28865]
[1739784756139,1.29518,2715.9,2715.5,0.5522]
[1739784756351,1.29518,2715.9,2715.6,0.74196425]
[1739784756553,1.29517,2715.9,2715.7,0.73641]
[1739784757042,1.29517,2715.9,2715.6,0.00552425]
[1739784757243,1.29517,2715.9,2715.7,0.73641]
[1739784757444,1.29517,2715.9,2715.6,0.74195425]
[1739784757847,0.5588,2715.9,2715.6,0.00552425]
[1739784758051,0.5588,2715.9,2715.8,0.73639]
[1739784758245,3.2078,2716.1,2716.0,0.73634]
[1739784758441,5.7278,2716.1,2716.0,0.73634]
[1739784758749,5.7278,2716.1,2715.9,0.73635]
[1739784759048,6.2632,2716.1,2715.9,0.73635]
[1739784759250,6.2632,2716.1,2715.7,0.565]
[1739784759446,6.2632,2716.1,2716.0,0.73634]
[1739784760543,6.2632,2716.1,2715.7,0.565]
[1739784761047,6.2632,2716.1,2716.0,0.73634]